[Event "Titled Tuesday Blitz June 21 Early 2022"]
[White "Ladan, Nicholas"]
[Black "Itkis, Boris"]
[WhiteFideId "30918855"]
[BlackFideId "1209167"]
[WhiteElo "2167"]
[BlackElo "2207"]
[Result "0-1"]
[Round "02"]
[TimeControl "180+1"]
[Date "2022.06.22"]
[WhiteClock "0:00:06"]
[BlackClock "0:00:20"]

1. d4 {[%clk 0:03:00]}  Nf6 {[%clk 0:02:59]} 2. c4 {[%clk 0:03:00]}  Nc6 {[%clk 0:02:59]} 3. Nf3 {[%clk 0:03:00]}  e6 {[%clk 0:02:59]} 4. a3 {[%clk 0:03:00]}  g6 {[%clk 0:02:48]} 5. g3 {[%clk 0:03:00]}  Bg7 {[%clk 0:02:48]} 6. Bg2 {[%clk 0:03:01]}  d6 {[%clk 0:02:49]} 7. O-O {[%clk 0:03:01]}  O-O {[%clk 0:02:49]} 8. Nc3 {[%clk 0:03:00]}  e5 {[%clk 0:02:49]} 9. e4 {[%clk 0:02:54]}  Re8 {[%clk 0:02:30]} 10. d5 {[%clk 0:02:49]}  Nd4 {[%clk 0:02:23]} 11. Ne1 {[%clk 0:02:40]}  c5 {[%clk 0:02:16]} 12. Nd3 {[%clk 0:02:28]}  Bd7 {[%clk 0:02:01]} 13. f4 {[%clk 0:02:20]}  Bg4 {[%clk 0:02:00]} 14. Qd2 {[%clk 0:02:16]}  Nb3 {[%clk 0:01:58]} 15. Qe1 {[%clk 0:01:41]}  Nxa1 {[%clk 0:01:57]} 16. h3 {[%clk 0:01:40]}  Bd7 {[%clk 0:01:41]} 17. Qd1 {[%clk 0:01:40]}  Qb6 {[%clk 0:01:29]} 18. fxe5 {[%clk 0:01:16]}  dxe5 {[%clk 0:01:20]} 19. Bg5 {[%clk 0:01:14]}  Nb3 {[%clk 0:01:16]} 20. Bxf6 {[%clk 0:01:11]}  Bxf6 {[%clk 0:01:16]} 21. Rxf6 {[%clk 0:01:11]}  Qxf6 {[%clk 0:01:16]} 22. Qxb3 {[%clk 0:01:12]}  b6 {[%clk 0:01:13]} 23. Nd1 {[%clk 0:00:54]}  Qg5 {[%clk 0:01:05]} 24. Kh2 {[%clk 0:00:53]}  f5 {[%clk 0:01:04]} 25. exf5 {[%clk 0:00:47]}  gxf5 {[%clk 0:00:58]} 26. d6 {[%clk 0:00:44]}  Rad8 {[%clk 0:00:52]} 27. Qc3 {[%clk 0:00:43]}  f4 {[%clk 0:00:42]} 28. g4 {[%clk 0:00:22]}  e4 {[%clk 0:00:36]} 29. N3f2 {[%clk 0:00:21]}  f3 {[%clk 0:00:32]} 30. Bf1 {[%clk 0:00:17]}  e3 {[%clk 0:00:25]} 31. Nxe3 {[%clk 0:00:05]}  Rxe3 {[%clk 0:00:23]} 32. Qd2 {[%clk 0:00:03]}  h6 {[%clk 0:00:19]} 33. Bd3 {[%clk 0:00:03]}  Re2 {[%clk 0:00:16]} 34. Qxg5+ {[%clk 0:00:02]}  hxg5 {[%clk 0:00:17]} 35. Bxe2 {[%clk 0:00:02]}  fxe2 {[%clk 0:00:18]} 36. Nd3 {[%clk 0:00:02]}  Ba4 {[%clk 0:00:17]} 37. Ne1 {[%clk 0:00:03]}  Rxd6 {[%clk 0:00:17]} 38. Kg3 {[%clk 0:00:03]}  Rd1 {[%clk 0:00:16]} 39. Kf2 {[%clk 0:00:04]}  Bb3 {[%clk 0:00:16]} 40. Kxe2 {[%clk 0:00:05]}  Rxe1+ {[%clk 0:00:16]} 41. Kxe1 {[%clk 0:00:05]}  Bxc4 {[%clk 0:00:17]} 42. Kd2 {[%clk 0:00:06]}  Be6 {[%clk 0:00:17]} 43. Ke3 {[%clk 0:00:07]}  Kf7 {[%clk 0:00:18]} 44. Ke4 {[%clk 0:00:08]}  Kf6 {[%clk 0:00:18]} 45. Ke3 {[%clk 0:00:05]}  Ke5 {[%clk 0:00:18]} 46. Kf3 {[%clk 0:00:06]}  Bd5+ {[%clk 0:00:19]} 47. Kg3 {[%clk 0:00:07]}  Ke4 {[%clk 0:00:19]} 48. h4 {[%clk 0:00:07]}  gxh4+ {[%clk 0:00:20]} 49. Kxh4 {[%clk 0:00:08]}  Bf7 {[%clk 0:00:20]} 50. Kg5 {[%clk 0:00:08]}  Kd3 {[%clk 0:00:20]} 51. Kf6 {[%clk 0:00:08]}  Be8 {[%clk 0:00:21]} 52. g5 {[%clk 0:00:08]}  Kc2 {[%clk 0:00:21]} 53. Ke7 {[%clk 0:00:09]}  Bh5 {[%clk 0:00:21]} 54. Kd6 {[%clk 0:00:09]}  Kxb2 {[%clk 0:00:22]} 55. a4 {[%clk 0:00:10]}  c4 {[%clk 0:00:22]} 56. Kc6 {[%clk 0:00:09]}  c3 {[%clk 0:00:22]} 57. Kb7 {[%clk 0:00:10]}  c2 {[%clk 0:00:22]} 58. Kxa7 {[%clk 0:00:10]}  c1=Q {[%clk 0:00:22]} 59. Kxb6 {[%clk 0:00:11]}  Qxg5 {[%clk 0:00:21]} 60. a5 {[%clk 0:00:11]}  Bf3 {[%clk 0:00:20]} 61. a6 {[%clk 0:00:11]}  Qd5 {[%clk 0:00:21]} 62. a7 {[%clk 0:00:11]}  Qc6+ {[%clk 0:00:21]} 63. Ka5 {[%clk 0:00:11]}  Be2 {[%clk 0:00:20]} 64. a8=Q {[%clk 0:00:06]}  Qb5# {[%clk 0:00:20]} 0-1


[Site "https://www.chess.com"]

[Event "Titled Tuesday Blitz June 21 Early 2022"]
[White "Li, Zhuoling"]
[Black "Toncheva, Nadya"]
[WhiteFideId "8605629"]
[BlackFideId "2924056"]
[WhiteElo "2304"]
[BlackElo "1888"]
[Result "0-1"]
[Round "02"]
[TimeControl "180+1"]
[Date "2022.06.22"]
[WhiteClock "0:00:02"]
[BlackClock "0:00:08"]

1. e4 {[%clk 0:03:00]}  c5 {[%clk 0:02:57]} 2. Nf3 {[%clk 0:03:00]}  d6 {[%clk 0:02:57]} 3. d4 {[%clk 0:03:00]}  cxd4 {[%clk 0:02:58]} 4. Nxd4 {[%clk 0:03:00]}  Nf6 {[%clk 0:02:59]} 5. Nc3 {[%clk 0:03:01]}  Nc6 {[%clk 0:02:59]} 6. Bg5 {[%clk 0:02:58]}  e6 {[%clk 0:03:00]} 7. Qd2 {[%clk 0:02:58]}  a6 {[%clk 0:03:00]} 8. O-O-O {[%clk 0:02:57]}  Bd7 {[%clk 0:03:00]} 9. f3 {[%clk 0:02:56]}  b5 {[%clk 0:02:51]} 10. Kb1 {[%clk 0:02:49]}  Qc7 {[%clk 0:02:51]} 11. Be3 {[%clk 0:02:36]}  Rc8 {[%clk 0:02:45]} 12. g4 {[%clk 0:02:32]}  h6 {[%clk 0:02:33]} 13. h4 {[%clk 0:02:30]}  Ne5 {[%clk 0:02:11]} 14. Bd3 {[%clk 0:02:26]}  b4 {[%clk 0:01:31]} 15. Nce2 {[%clk 0:02:24]}  Nc4 {[%clk 0:01:05]} 16. Bxc4 {[%clk 0:02:24]}  Qxc4 {[%clk 0:01:06]} 17. g5 {[%clk 0:02:21]}  Nh5 {[%clk 0:01:04]} 18. b3 {[%clk 0:02:08]}  Qc7 {[%clk 0:01:00]} 19. f4 {[%clk 0:02:02]}  a5 {[%clk 0:00:45]} 20. f5 {[%clk 0:01:53]}  e5 {[%clk 0:00:44]} 21. Nf3 {[%clk 0:01:45]}  Bc6 {[%clk 0:00:37]} 22. Qd3 {[%clk 0:01:35]}  Qb7 {[%clk 0:00:36]} 23. Nd2 {[%clk 0:01:28]}  Bb5 {[%clk 0:00:36]} 24. Nc4 {[%clk 0:01:15]}  Qa6 {[%clk 0:00:26]} 25. Rhg1 {[%clk 0:00:22]}  Rxc4 {[%clk 0:00:22]} 26. bxc4 {[%clk 0:00:19]}  Bxc4 {[%clk 0:00:23]} 27. Qd2 {[%clk 0:00:18]}  Bxe2 {[%clk 0:00:23]} 28. Rde1 {[%clk 0:00:18]}  Bc4 {[%clk 0:00:23]} 29. gxh6 {[%clk 0:00:17]}  gxh6 {[%clk 0:00:20]} 30. Qd1 {[%clk 0:00:14]}  Nf6 {[%clk 0:00:17]} 31. Qf3 {[%clk 0:00:12]}  Qc6 {[%clk 0:00:16]} 32. Bc1 {[%clk 0:00:11]}  Qa4 {[%clk 0:00:15]} 33. a3 {[%clk 0:00:09]}  Be7 {[%clk 0:00:13]} 34. Bb2 {[%clk 0:00:08]}  Kd7 {[%clk 0:00:11]} 35. axb4 {[%clk 0:00:07]}  Rb8 {[%clk 0:00:09]} 36. Qa3 {[%clk 0:00:03]}  Qc6 {[%clk 0:00:08]} 37. Qxa5 {[%clk 0:00:02]}  Nxe4 {[%clk 0:00:08]} 0-1


[Site "https://www.chess.com"]

[Event "Titled Tuesday Blitz June 21 Early 2022"]
[White "Lianes Garcia, Marcos"]
[Black "Onslow, Alfie"]
[WhiteFideId "32060777"]
[BlackFideId "436976"]
[WhiteElo "2720"]
[BlackElo "2351"]
[Result "1-0"]
[Round "02"]
[TimeControl "180+1"]
[Date "2022.06.22"]
[WhiteClock "0:00:23"]
[BlackClock "0:00:04"]

1. e4 {[%clk 0:03:00]}  g6 {[%clk 0:02:58]} 2. g3 {[%clk 0:03:00]}  Bg7 {[%clk 0:02:58]} 3. Bg2 {[%clk 0:03:00]}  c6 {[%clk 0:02:59]} 4. Ne2 {[%clk 0:02:58]}  d5 {[%clk 0:02:59]} 5. d4 {[%clk 0:02:58]}  dxe4 {[%clk 0:02:58]} 6. Bxe4 {[%clk 0:02:59]}  Nf6 {[%clk 0:02:58]} 7. Bg2 {[%clk 0:02:59]}  O-O {[%clk 0:02:56]} 8. O-O {[%clk 0:02:59]}  Nbd7 {[%clk 0:02:50]} 9. c4 {[%clk 0:02:59]}  e5 {[%clk 0:02:50]} 10. d5 {[%clk 0:02:58]}  cxd5 {[%clk 0:02:49]} 11. cxd5 {[%clk 0:02:59]}  Ne8 {[%clk 0:02:46]} 12. Nbc3 {[%clk 0:02:59]}  Nd6 {[%clk 0:02:44]} 13. b3 {[%clk 0:02:58]}  f5 {[%clk 0:02:39]} 14. Ba3 {[%clk 0:02:56]}  Nf6 {[%clk 0:02:37]} 15. Rc1 {[%clk 0:02:54]}  a6 {[%clk 0:02:31]} 16. Na4 {[%clk 0:02:49]}  Nfe8 {[%clk 0:02:21]} 17. Nc5 {[%clk 0:02:40]}  Qa5 {[%clk 0:01:55]} 18. Bb2 {[%clk 0:02:37]}  e4 {[%clk 0:01:23]} 19. Bxg7 {[%clk 0:02:29]}  Nxg7 {[%clk 0:01:24]} 20. a4 {[%clk 0:01:59]}  b6 {[%clk 0:01:12]} 21. Ne6 {[%clk 0:01:53]}  Bxe6 {[%clk 0:00:53]} 22. dxe6 {[%clk 0:01:54]}  Qe5 {[%clk 0:00:47]} 23. Rc6 {[%clk 0:01:45]}  Rfd8 {[%clk 0:00:46]} 24. Nf4 {[%clk 0:01:41]}  Rac8 {[%clk 0:00:20]} 25. Rxc8 {[%clk 0:00:56]}  Rxc8 {[%clk 0:00:21]} 26. Qe2 {[%clk 0:00:53]}  Nxe6 {[%clk 0:00:20]} 27. Nxe6 {[%clk 0:00:53]}  Qxe6 {[%clk 0:00:20]} 28. Qxa6 {[%clk 0:00:54]}  Qxb3 {[%clk 0:00:18]} 29. a5 {[%clk 0:00:49]}  Qc4 {[%clk 0:00:14]} 30. Qxb6 {[%clk 0:00:44]}  Nf7 {[%clk 0:00:08]} 31. Rb1 {[%clk 0:00:32]}  Qa4 {[%clk 0:00:05]} 32. Bf1 {[%clk 0:00:27]}  Ne5 {[%clk 0:00:04]} 33. Qe6+ {[%clk 0:00:23]} 1-0


[Site "https://www.chess.com"]

[Event "Titled Tuesday Blitz June 21 Early 2022"]
[White "Ljukin, Sergei"]
[Black "Gabrielian, Artur"]
[WhiteFideId "14102200"]
[BlackFideId "4131002"]
[WhiteElo "2469"]
[BlackElo "2757"]
[Result "0-1"]
[Round "02"]
[TimeControl "180+1"]
[Date "2022.06.22"]
[WhiteClock "0:00:08"]
[BlackClock "0:00:20"]

1. e4 {[%clk 0:02:55]}  c5 {[%clk 0:02:59]} 2. Nf3 {[%clk 0:02:55]}  d6 {[%clk 0:02:59]} 3. d4 {[%clk 0:02:55]}  cxd4 {[%clk 0:02:59]} 4. Nxd4 {[%clk 0:02:56]}  Nf6 {[%clk 0:02:58]} 5. Nc3 {[%clk 0:02:56]}  Nc6 {[%clk 0:02:58]} 6. Bc4 {[%clk 0:02:55]}  Qb6 {[%clk 0:02:56]} 7. Nb3 {[%clk 0:02:54]}  e6 {[%clk 0:02:56]} 8. Bg5 {[%clk 0:02:55]}  Be7 {[%clk 0:02:55]} 9. Bxf6 {[%clk 0:02:55]}  gxf6 {[%clk 0:02:49]} 10. Qh5 {[%clk 0:02:55]}  Bd7 {[%clk 0:02:43]} 11. Rf1 {[%clk 0:02:54]}  Ne5 {[%clk 0:02:37]} 12. Be2 {[%clk 0:02:54]}  O-O-O {[%clk 0:02:31]} 13. f4 {[%clk 0:02:52]}  Ng6 {[%clk 0:02:30]} 14. g3 {[%clk 0:02:42]}  Kb8 {[%clk 0:02:26]} 15. O-O-O {[%clk 0:02:41]}  Rc8 {[%clk 0:02:20]} 16. Kb1 {[%clk 0:02:38]}  a6 {[%clk 0:02:14]} 17. Bd3 {[%clk 0:01:53]}  Rc7 {[%clk 0:01:53]} 18. Ne2 {[%clk 0:01:50]}  Rhc8 {[%clk 0:01:35]} 19. Qxh7 {[%clk 0:01:42]}  Be8 {[%clk 0:01:34]} 20. h4 {[%clk 0:01:24]}  a5 {[%clk 0:01:31]} 21. h5 {[%clk 0:01:17]}  Nf8 {[%clk 0:01:30]} 22. Qh6 {[%clk 0:01:16]}  a4 {[%clk 0:01:27]} 23. Nbc1 {[%clk 0:01:16]}  a3 {[%clk 0:01:23]} 24. b3 {[%clk 0:01:16]}  Bb5 {[%clk 0:01:13]} 25. c4 {[%clk 0:01:12]}  Bxc4 {[%clk 0:01:12]} 26. Bxc4 {[%clk 0:00:50]}  Rxc4 {[%clk 0:01:11]} 27. f5 {[%clk 0:00:51]}  Rxe4 {[%clk 0:01:04]} 28. Qd2 {[%clk 0:00:34]}  Re5 {[%clk 0:00:59]} 29. g4 {[%clk 0:00:32]}  Rec5 {[%clk 0:00:47]} 30. Nd3 {[%clk 0:00:30]}  R5c7 {[%clk 0:00:45]} 31. Ndf4 {[%clk 0:00:23]}  d5 {[%clk 0:00:43]} 32. Rc1 {[%clk 0:00:19]}  Bd6 {[%clk 0:00:40]} 33. h6 {[%clk 0:00:13]}  Be5 {[%clk 0:00:32]} 34. Nd3 {[%clk 0:00:12]}  Bd6 {[%clk 0:00:28]} 35. fxe6 {[%clk 0:00:12]}  fxe6 {[%clk 0:00:21]} 36. Rxf6 {[%clk 0:00:12]}  Rxc1+ {[%clk 0:00:20]} 37. Nexc1 {[%clk 0:00:11]}  Qd4 {[%clk 0:00:20]} 38. Rf1 {[%clk 0:00:08]}  Be5 {[%clk 0:00:20]} 0-1


[Site "https://www.chess.com"]

[Event "Titled Tuesday Blitz June 21 Early 2022"]
[White "Martin Carmona, Gaston Manuel"]
[Black "Corrales Jimenez, Fidel"]
[WhiteFideId "22284567"]
[BlackFideId "3506690"]
[WhiteElo "2570"]
[BlackElo "2804"]
[Result "1-0"]
[Round "02"]
[TimeControl "180+1"]
[Date "2022.06.22"]
[WhiteClock "0:00:12"]
[BlackClock "0:00:43"]

1. d4 {[%clk 0:03:00]}  Nf6 {[%clk 0:02:55]} 2. c4 {[%clk 0:03:01]}  g6 {[%clk 0:02:49]} 3. Nf3 {[%clk 0:03:02]}  Bg7 {[%clk 0:02:49]} 4. g3 {[%clk 0:03:01]}  O-O {[%clk 0:02:49]} 5. Bg2 {[%clk 0:03:02]}  d5 {[%clk 0:02:49]} 6. O-O {[%clk 0:02:57]}  Nc6 {[%clk 0:02:49]} 7. cxd5 {[%clk 0:02:54]}  Nxd5 {[%clk 0:02:50]} 8. Nc3 {[%clk 0:02:55]}  Nb6 {[%clk 0:02:47]} 9. e3 {[%clk 0:02:52]}  Re8 {[%clk 0:02:44]} 10. Re1 {[%clk 0:02:51]}  Bd7 {[%clk 0:02:44]} 11. Rb1 {[%clk 0:02:51]}  e5 {[%clk 0:02:43]} 12. d5 {[%clk 0:02:50]}  Na5 {[%clk 0:02:44]} 13. b3 {[%clk 0:02:41]}  c6 {[%clk 0:02:40]} 14. dxc6 {[%clk 0:02:12]}  Nxc6 {[%clk 0:02:41]} 15. Bb2 {[%clk 0:02:12]}  Bf5 {[%clk 0:02:34]} 16. Rc1 {[%clk 0:02:05]}  e4 {[%clk 0:02:18]} 17. Nh4 {[%clk 0:02:00]}  Nb4 {[%clk 0:02:14]} 18. Nxf5 {[%clk 0:01:56]}  gxf5 {[%clk 0:02:15]} 19. Bf1 {[%clk 0:01:50]}  Nxa2 {[%clk 0:02:03]} 20. Nxa2 {[%clk 0:01:29]}  Bxb2 {[%clk 0:02:00]} 21. Rc2 {[%clk 0:01:29]}  Qxd1 {[%clk 0:01:55]} 22. Rxd1 {[%clk 0:01:30]}  Be5 {[%clk 0:01:55]} 23. Rc5 {[%clk 0:01:19]}  Kg7 {[%clk 0:01:52]} 24. Rb5 {[%clk 0:01:13]}  Kf6 {[%clk 0:01:48]} 25. Nb4 {[%clk 0:01:13]}  Red8 {[%clk 0:01:46]} 26. Nd5+ {[%clk 0:00:47]}  Nxd5 {[%clk 0:01:42]} 27. Rdxd5 {[%clk 0:00:48]}  Rxd5 {[%clk 0:01:42]} 28. Rxd5 {[%clk 0:00:49]}  a6 {[%clk 0:01:35]} 29. Rd7 {[%clk 0:00:49]}  b5 {[%clk 0:01:32]} 30. Rb7 {[%clk 0:00:49]}  Rb8 {[%clk 0:01:20]} 31. Ra7 {[%clk 0:00:46]}  Rb6 {[%clk 0:01:19]} 32. Kg2 {[%clk 0:00:45]}  Rc6 {[%clk 0:01:17]} 33. Be2 {[%clk 0:00:44]}  Bc3 {[%clk 0:01:16]} 34. Bh5 {[%clk 0:00:43]}  Be1 {[%clk 0:01:14]} 35. Rxf7+ {[%clk 0:00:36]}  Ke6 {[%clk 0:01:14]} 36. Ra7 {[%clk 0:00:25]}  Rc2 {[%clk 0:01:12]} 37. Rxa6+ {[%clk 0:00:24]}  Kd5 {[%clk 0:01:11]} 38. Bf7+ {[%clk 0:00:24]}  Kc5 {[%clk 0:01:10]} 39. Kh3 {[%clk 0:00:17]}  Bxf2 {[%clk 0:01:02]} 40. Kh4 {[%clk 0:00:17]}  Bxe3 {[%clk 0:00:56]} 41. h3 {[%clk 0:00:16]}  h6 {[%clk 0:00:55]} 42. Be8 {[%clk 0:00:15]}  Bg5+ {[%clk 0:00:54]} 43. Kh5 {[%clk 0:00:16]}  e3 {[%clk 0:00:53]} 44. Rc6+ {[%clk 0:00:15]}  Kb4 {[%clk 0:00:50]} 45. Rxc2 {[%clk 0:00:16]}  Kxb3 {[%clk 0:00:50]} 46. Re2 {[%clk 0:00:16]}  b4 {[%clk 0:00:46]} 47. h4 {[%clk 0:00:16]}  f4 {[%clk 0:00:43]} 48. hxg5 {[%clk 0:00:14]}  hxg5 {[%clk 0:00:44]} 49. Kxg5 {[%clk 0:00:12]}  Kc3 {[%clk 0:00:43]} 50. Kxf4 {[%clk 0:00:12]} 1-0


[Site "https://www.chess.com"]

[Event "Titled Tuesday Blitz June 21 Early 2022"]
[White "Martin, Lewis"]
[Black "Trakru, Rohun"]
[WhiteFideId "410551"]
[BlackFideId "2097613"]
[WhiteElo "2145"]
[BlackElo "1746"]
[Result "1-0"]
[Round "02"]
[TimeControl "180+1"]
[Date "2022.06.22"]
[WhiteClock "0:00:09"]
[BlackClock "0:00:41"]

1. e4 {[%clk 0:03:00]}  e6 {[%clk 0:02:57]} 2. d4 {[%clk 0:03:00]}  d5 {[%clk 0:02:58]} 3. Nd2 {[%clk 0:02:59]}  c5 {[%clk 0:02:55]} 4. exd5 {[%clk 0:02:58]}  Qxd5 {[%clk 0:02:53]} 5. dxc5 {[%clk 0:02:57]}  Bxc5 {[%clk 0:02:51]} 6. Ngf3 {[%clk 0:02:58]}  Nf6 {[%clk 0:02:51]} 7. Bc4 {[%clk 0:02:54]}  Qd8 {[%clk 0:02:48]} 8. O-O {[%clk 0:02:54]}  O-O {[%clk 0:02:49]} 9. Nb3 {[%clk 0:02:54]}  Bb6 {[%clk 0:02:40]} 10. Bg5 {[%clk 0:02:48]}  Nbd7 {[%clk 0:02:40]} 11. Re1 {[%clk 0:02:39]}  Qc7 {[%clk 0:02:38]} 12. Bd3 {[%clk 0:02:33]}  Re8 {[%clk 0:02:23]} 13. c3 {[%clk 0:02:28]}  a6 {[%clk 0:02:10]} 14. Qc2 {[%clk 0:02:26]}  h6 {[%clk 0:02:08]} 15. Bh4 {[%clk 0:02:24]}  Ba7 {[%clk 0:02:08]} 16. Bg3 {[%clk 0:02:23]}  Qd8 {[%clk 0:02:04]} 17. Rad1 {[%clk 0:02:22]}  b5 {[%clk 0:02:03]} 18. Be4 {[%clk 0:02:15]}  Nxe4 {[%clk 0:01:45]} 19. Qxe4 {[%clk 0:02:14]}  Rb8 {[%clk 0:01:44]} 20. Bxb8 {[%clk 0:02:13]}  Bxb8 {[%clk 0:01:45]} 21. Nc5 {[%clk 0:02:06]}  Qc7 {[%clk 0:01:41]} 22. Nxd7 {[%clk 0:01:55]}  Bxd7 {[%clk 0:01:42]} 23. Ne5 {[%clk 0:01:19]}  Bc8 {[%clk 0:01:40]} 24. Qc6 {[%clk 0:01:16]}  Qe7 {[%clk 0:01:39]} 25. f4 {[%clk 0:00:53]}  Bb7 {[%clk 0:01:34]} 26. Qd7 {[%clk 0:00:51]}  Ba7+ {[%clk 0:01:10]} 27. Kh1 {[%clk 0:00:44]}  Bd5 {[%clk 0:01:10]} 28. Qxe7 {[%clk 0:00:39]}  Rxe7 {[%clk 0:01:11]} 29. b3 {[%clk 0:00:36]}  Rc7 {[%clk 0:01:09]} 30. Rd3 {[%clk 0:00:30]}  f6 {[%clk 0:01:06]} 31. Nf3 {[%clk 0:00:28]}  Kf7 {[%clk 0:01:05]} 32. Rc1 {[%clk 0:00:20]}  Rc8 {[%clk 0:01:02]} 33. c4 {[%clk 0:00:18]}  Be4 {[%clk 0:00:59]} 34. Rd7+ {[%clk 0:00:17]}  Kg6 {[%clk 0:00:58]} 35. Rxa7 {[%clk 0:00:18]}  Kf5 {[%clk 0:00:57]} 36. Rxa6 {[%clk 0:00:18]}  Kxf4 {[%clk 0:00:57]} 37. Rxe6 {[%clk 0:00:17]}  b4 {[%clk 0:00:55]} 38. Re1 {[%clk 0:00:16]}  f5 {[%clk 0:00:55]} 39. Nd4 {[%clk 0:00:14]}  Ra8 {[%clk 0:00:55]} 40. Re2 {[%clk 0:00:13]}  g5 {[%clk 0:00:53]} 41. Rxh6 {[%clk 0:00:13]}  Bd3 {[%clk 0:00:52]} 42. Re1 {[%clk 0:00:11]}  Rxa2 {[%clk 0:00:52]} 43. Ne6+ {[%clk 0:00:11]}  Kg4 {[%clk 0:00:51]} 44. h3+ {[%clk 0:00:11]}  Kg3 {[%clk 0:00:51]} 45. Rg6 {[%clk 0:00:10]}  Be4 {[%clk 0:00:47]} 46. Rxg5+ {[%clk 0:00:10]}  Kh4 {[%clk 0:00:48]} 47. Rg8 {[%clk 0:00:10]}  Rb2 {[%clk 0:00:42]} 48. Nc5 {[%clk 0:00:10]}  Bc6 {[%clk 0:00:40]} 49. Kh2 {[%clk 0:00:10]}  f4 {[%clk 0:00:37]} 50. Re7 {[%clk 0:00:10]}  Rxg2+ {[%clk 0:00:29]} 51. Rxg2 {[%clk 0:00:09]}  f3 {[%clk 0:00:30]} 52. Rf2 {[%clk 0:00:08]}  Kg5 {[%clk 0:00:30]} 53. Re5+ {[%clk 0:00:07]}  Kf4 {[%clk 0:00:30]} 54. Re8 {[%clk 0:00:07]}  Bxe8 {[%clk 0:00:29]} 55. Nd3+ {[%clk 0:00:06]}  Ke3 {[%clk 0:00:29]} 56. Kg3 {[%clk 0:00:05]}  Bc6 {[%clk 0:00:29]} 57. Nxb4 {[%clk 0:00:05]}  Be4 {[%clk 0:00:29]} 58. Nd5+ {[%clk 0:00:05]}  Kd4 {[%clk 0:00:28]} 59. h4 {[%clk 0:00:05]}  Ke5 {[%clk 0:00:27]} 60. Rxf3 {[%clk 0:00:05]}  Bxf3 {[%clk 0:00:28]} 61. Kxf3 {[%clk 0:00:06]}  Kf5 {[%clk 0:00:28]} 62. h5 {[%clk 0:00:06]}  Kg5 {[%clk 0:00:29]} 63. b4 {[%clk 0:00:06]}  Kxh5 {[%clk 0:00:30]} 64. b5 {[%clk 0:00:07]}  Kg6 {[%clk 0:00:30]} 65. Ke4 {[%clk 0:00:08]}  Kf7 {[%clk 0:00:30]} 66. Ke5 {[%clk 0:00:09]}  Ke8 {[%clk 0:00:30]} 67. Kd6 {[%clk 0:00:10]}  Kf7 {[%clk 0:00:31]} 68. Kd7 {[%clk 0:00:10]}  Kg6 {[%clk 0:00:32]} 69. b6 {[%clk 0:00:10]}  Kf5 {[%clk 0:00:33]} 70. b7 {[%clk 0:00:11]}  Ke4 {[%clk 0:00:34]} 71. b8=Q {[%clk 0:00:11]}  Kd4 {[%clk 0:00:35]} 72. Qd6 {[%clk 0:00:11]}  Kxc4 {[%clk 0:00:35]} 73. Kc6 {[%clk 0:00:11]}  Kd3 {[%clk 0:00:36]} 74. Nf4+ {[%clk 0:00:10]}  Ke4 {[%clk 0:00:37]} 75. Kc5 {[%clk 0:00:10]}  Kf5 {[%clk 0:00:37]} 76. Kd4 {[%clk 0:00:10]}  Kg4 {[%clk 0:00:38]} 77. Ke4 {[%clk 0:00:10]}  Kg3 {[%clk 0:00:39]} 78. Nd3+ {[%clk 0:00:09]}  Kg4 {[%clk 0:00:40]} 79. Qg6+ {[%clk 0:00:09]}  Kh3 {[%clk 0:00:40]} 80. Kf3 {[%clk 0:00:09]}  Kh2 {[%clk 0:00:41]} 81. Qg2# {[%clk 0:00:09]} 1-0


[Site "https://www.chess.com"]

[Event "Titled Tuesday Blitz June 21 Early 2022"]
[White "Martinez Alcantara, Jose Eduardo"]
[Black "Kucuksari, Kaan"]
[WhiteFideId "3805662"]
[BlackFideId "6380166"]
[WhiteElo "2703"]
[BlackElo "2305"]
[Result "1-0"]
[Round "02"]
[TimeControl "180+1"]
[Date "2022.06.21"]
[WhiteClock "0:00:23"]
[BlackClock "0:00:08"]

1. e4 {[%clk 0:03:00]}  c6 {[%clk 0:02:56]} 2. d4 {[%clk 0:03:00]}  d5 {[%clk 0:02:57]} 3. e5 {[%clk 0:03:01]}  c5 {[%clk 0:02:56]} 4. Nf3 {[%clk 0:03:00]}  Nc6 {[%clk 0:02:55]} 5. dxc5 {[%clk 0:03:00]}  Bg4 {[%clk 0:02:55]} 6. c3 {[%clk 0:03:01]}  e6 {[%clk 0:02:49]} 7. Be3 {[%clk 0:03:01]}  Bxf3 {[%clk 0:02:43]} 8. Qxf3 {[%clk 0:02:59]}  Nxe5 {[%clk 0:02:43]} 9. Bb5+ {[%clk 0:02:59]}  Nc6 {[%clk 0:02:43]} 10. c4 {[%clk 0:02:59]}  Nf6 {[%clk 0:02:28]} 11. Nc3 {[%clk 0:02:48]}  Be7 {[%clk 0:02:24]} 12. Rd1 {[%clk 0:02:46]}  O-O {[%clk 0:02:22]} 13. O-O {[%clk 0:02:40]}  a6 {[%clk 0:02:14]} 14. cxd5 {[%clk 0:02:33]}  exd5 {[%clk 0:01:50]} 15. Nxd5 {[%clk 0:02:25]}  Nxd5 {[%clk 0:01:50]} 16. Rxd5 {[%clk 0:02:24]}  Qa5 {[%clk 0:01:48]} 17. Bc4 {[%clk 0:02:17]}  Bf6 {[%clk 0:01:45]} 18. Rf5 {[%clk 0:01:13]}  Ne5 {[%clk 0:01:39]} 19. Qf4 {[%clk 0:01:09]}  Nxc4 {[%clk 0:01:35]} 20. Qxc4 {[%clk 0:01:10]}  Bxb2 {[%clk 0:01:31]} 21. Qb3 {[%clk 0:01:10]}  Bf6 {[%clk 0:01:20]} 22. g4 {[%clk 0:01:01]}  Qb5 {[%clk 0:01:14]} 23. Qxb5 {[%clk 0:01:01]}  axb5 {[%clk 0:01:15]} 24. Rb1 {[%clk 0:01:01]}  Rxa2 {[%clk 0:01:14]} 25. Rxb5 {[%clk 0:01:01]}  Rb2 {[%clk 0:01:14]} 26. Rxb2 {[%clk 0:00:59]}  Bxb2 {[%clk 0:01:15]} 27. Rd5 {[%clk 0:00:59]}  h5 {[%clk 0:01:01]} 28. gxh5 {[%clk 0:00:58]}  f6 {[%clk 0:01:01]} 29. Kg2 {[%clk 0:00:54]}  Rf7 {[%clk 0:00:53]} 30. Kf3 {[%clk 0:00:49]}  Re7 {[%clk 0:00:46]} 31. h6 {[%clk 0:00:44]}  g5 {[%clk 0:00:37]} 32. h4 {[%clk 0:00:44]}  gxh4 {[%clk 0:00:36]} 33. Rh5 {[%clk 0:00:45]}  Kh7 {[%clk 0:00:24]} 34. Rxh4 {[%clk 0:00:45]}  Be5 {[%clk 0:00:23]} 35. Rg4 {[%clk 0:00:40]}  f5 {[%clk 0:00:20]} 36. Rg5 {[%clk 0:00:35]}  Kxh6 {[%clk 0:00:19]} 37. Rxf5+ {[%clk 0:00:32]}  Kg6 {[%clk 0:00:19]} 38. Kg4 {[%clk 0:00:23]}  Bf6 {[%clk 0:00:18]} 39. Rxf6+ {[%clk 0:00:19]}  Kxf6 {[%clk 0:00:16]} 40. Bg5+ {[%clk 0:00:20]}  Ke6 {[%clk 0:00:17]} 41. Bxe7 {[%clk 0:00:21]}  Kxe7 {[%clk 0:00:18]} 42. f4 {[%clk 0:00:21]}  Ke6 {[%clk 0:00:17]} 43. Kg5 {[%clk 0:00:21]}  Kf7 {[%clk 0:00:06]} 44. Kf5 {[%clk 0:00:22]}  Ke7 {[%clk 0:00:06]} 45. Kg6 {[%clk 0:00:22]}  Ke8 {[%clk 0:00:07]} 46. f5 {[%clk 0:00:22]}  Ke7 {[%clk 0:00:08]} 47. Kg7 {[%clk 0:00:23]} 1-0


[Site "https://www.chess.com"]

[Event "Titled Tuesday Blitz June 21 Early 2022"]
[White "Migot, Tangi"]
[Black "Delorme, Alban"]
[WhiteFideId "662445"]
[BlackFideId "623636"]
[WhiteElo "2490"]
[BlackElo "2197"]
[Result "1-0"]
[Round "02"]
[TimeControl "180+1"]
[Date "2022.06.22"]
[WhiteClock "0:02:01"]
[BlackClock "0:01:48"]

1. d4 {[%clk 0:03:00]}  d5 {[%clk 0:02:48]} 2. Bf4 {[%clk 0:03:00]}  Nf6 {[%clk 0:02:32]} 3. e3 {[%clk 0:02:58]}  e6 {[%clk 0:02:33]} 4. Nf3 {[%clk 0:02:58]}  Bd6 {[%clk 0:02:31]} 5. Bg3 {[%clk 0:02:58]}  O-O {[%clk 0:02:30]} 6. c4 {[%clk 0:02:58]}  c6 {[%clk 0:02:30]} 7. Nc3 {[%clk 0:02:58]}  Qe7 {[%clk 0:02:28]} 8. Qc2 {[%clk 0:02:57]}  Nbd7 {[%clk 0:02:25]} 9. cxd5 {[%clk 0:02:41]}  exd5 {[%clk 0:02:23]} 10. Bd3 {[%clk 0:02:41]}  Re8 {[%clk 0:02:22]} 11. Bh4 {[%clk 0:02:32]}  Nf8 {[%clk 0:02:20]} 12. O-O-O {[%clk 0:02:28]}  b5 {[%clk 0:02:18]} 13. Kb1 {[%clk 0:02:27]}  Ng6 {[%clk 0:02:17]} 14. Bxf6 {[%clk 0:02:26]}  Qxf6 {[%clk 0:02:15]} 15. e4 {[%clk 0:02:27]}  dxe4 {[%clk 0:02:08]} 16. Nxe4 {[%clk 0:02:27]}  Qd8 {[%clk 0:01:54]} 17. Qxc6 {[%clk 0:02:07]}  Bf8 {[%clk 0:01:48]} 18. Qxa8 {[%clk 0:02:01]} 1-0


[Site "https://www.chess.com"]